fUST/lending_fUST_20251216
["ID","MTS","AMOUNT","RATE_DAILY","PERIOD"]
[398541198,1765814409688,150.0,7.998e-05,2]
[398541199,1765814410178,150.0,8.378e-05,2]
[398541200,1765814426085,150.0,8.759e-05,2]
[398541201,1765814426734,150.0,9.14e-05,2]
[398541202,1765814427311,150.0,9.521e-05,2]
[398541203,1765814427795,162.23,9.902e-05,2]
[398541204,1765814428215,189.26,0.00010283,2]
[398541205,1765814495075,223.42,0.000106,2]
[398541206,1765814497040,150.0,8.006e-05,2]
[398541207,1765814497470,150.0,8.387e-05,2]
[398541208,1765814497894,150.0,8.769e-05,2]
[398541209,1765814498370,150.0,9.15e-05,2]
[398541210,1765814498882,150.0,9.531e-05,2]
[398541211,1765814499664,150.0,9.912e-05,2]
[398541212,1765814510166,156.07,0.0001,2]
[398541214,1765814544652,150.48,0.000106,2]
[398541215,1765814570373,-173.07884279,0.00010663,2]
[398541216,1765814570409,-532.86018323,0.00010663,2]
[398541217,1765814570444,-300.0,0.00010663,2]
[398541218,1765814571307,-1439.07826007,0.00010664,2]
[398541219,1765814571550,-10000.01,0.00010664,2]
[398541220,1765814571637,-10000.01,0.00010664,2]
[398541221,1765814571680,-10000.01,0.00010664,2]
[398541222,1765814572763,-10000.01,0.00010664,2]
[398541223,1765814573384,-10000.01,0.00010664,2]
[398541224,1765814573895,-10000.01,0.00010664,2]
[398541225,1765814576383,588.79717429,0.00010579,2]
[398541226,1765814579020,-9411.21282571,0.00010664,2]
[398541227,1765814595703,203.9,0.000106,2]
[398541228,1765814606455,1765.9242168,9.812e-05,2]
[398541229,1765814663347,152.46,0.000106,2]
[398541230,1765814673615,-150.0,0.00010636,2]
[398541231,1765814673648,-201.34967585,0.00010636,2]
[398541232,1765814673681,-407.0,0.00010663,2]
[398541233,1765814673714,-300.0,0.00010663,2]
[398541234,1765814673917,-5964.9264315,0.00010664,2]
[398541235,1765814673998,-10000.01,0.00010664,2]
[398541236,1765814679730,-10000.01,0.00010664,2]
[398541237,1765814686029,-10000.01,0.00010664,2]
[398541238,1765814686148,-10000.01,0.00010664,2]
[398541239,1765814710532,887.2493502,9.743e-05,2]
[398541240,1765814714630,199.82,0.000106,2]
[398541241,1765814757672,150.0,8.154e-05,2]
[398541242,1765814758182,150.0,8.542e-05,2]
[398541243,1765814759198,150.0,8.93e-05,2]
[398541244,1765814759566,150.0,9.319e-05,2]
[398541245,1765814760052,163.0,9.707e-05,2]
[398541246,1765814760473,195.6,0.00010095,2]
[398541247,1765814760935,228.21,0.00010483,2]
[398541248,1765814783629,153.13,0.000106,2]
[398541249,1765814805876,166.36,0.0001,2]
[398541250,1765814806916,166.36,0.000102,2]
[398541251,1765814807869,166.36,0.000104,2]
[398541252,1765814808790,166.36,0.000106,2]
[398541256,1765814831636,150.0,8.158e-05,2]
[398541257,1765814832400,150.0,8.546e-05,2]
[398541258,1765814832579,150.0,8.935e-05,2]
[398541259,1765814832758,150.0,9.323e-05,2]
[398541260,1765814833204,150.0,9.712e-05,2]
[398541261,1765814833633,150.0,0.000101,2]
[398541262,1765814834129,150.0,0.00010489,2]
[398541264,1765814839262,198.89,0.000106,2]
[398541266,1765814901052,150.0,8.15e-05,2]
[398541267,1765814902288,150.0,8.538e-05,2]
[398541268,1765814950827,-151.53714412,0.00014164,30]
[398541269,1765814950856,-151.53714412,0.00014247,30]
[398541270,1765814951545,236.63,0.000106,2]
[398541272,1765814958119,305.52556417,0.00010508,2]
[398541273,1765815019217,-150.0,0.00014329,30]
[398541326,1765815032083,-234.77749869,0.00010657,2]
[398541328,1765815032093,-553.64373807,0.00010657,2]
[398541330,1765815032104,-151.0,0.00010657,2]
[398541332,1765815032115,-2674.60743027,0.00010657,2]
[398541334,1765815032124,-151.0,0.00010657,2]
[398541336,1765815032134,-151.0,0.00010657,2]
[398541338,1765815032143,-151.0,0.00010657,2]
[398541340,1765815032153,-151.0,0.00010657,2]
[398541342,1765815032163,-151.0,0.00010657,2]
[398541344,1765815032172,-151.0,0.00010657,2]
[398541346,1765815032182,-151.0,0.00010657,2]
[398541348,1765815032191,-151.0,0.00010657,2]
[398541351,1765815032201,-151.0,0.00010657,2]
[398541353,1765815032211,-151.0,0.00010657,2]
[398541355,1765815032220,-151.0,0.00010657,2]
[398541357,1765815032230,-151.0,0.00010657,2]
[398541359,1765815032239,-151.0,0.00010657,2]
[398541361,1765815032248,-151.0,0.00010657,2]
[398541363,1765815032257,-151.0,0.00010657,2]
[398541365,1765815032266,-151.0,0.00010657,2]
[398541367,1765815032275,-151.0,0.00010657,2]
[398541369,1765815032284,-151.0,0.00010657,2]
[398541370,1765815032293,-151.0,0.00010657,2]
[398541372,1765815032303,-155.31902712,0.00010657,2]
[398541374,1765815032312,-300.0,0.00010663,2]
[398541376,1765815032322,-1200.0,0.00010663,2]
[398541378,1765815032331,-570.0,0.00010663,2]
[398541380,1765815032341,-236.21626103,0.00010663,2]
[398541382,1765815032350,-2247.38,0.00010664,2]
[398541384,1765815032359,-773184.68248272,0.00010664,2]
[398541387,1765815032375,-50000.0,0.00010664,2]
[398541390,1765815032388,-5222.096966,0.00010719,2]
[398541392,1765815032398,-286.5,0.00010757,2]
[398541394,1765815032407,-1110.0,0.00010757,2]
[398541396,1765815032416,-3847.9618085,0.00010764,2]
[398541398,1765815032426,-6383.5678171,0.00010764,2]
[398541400,1765815032436,-23689.0578834,0.00010764,2]
[398541402,1765815032446,-1333.0183691,0.0001086,2]
[398541404,1765815032456,-174.302,0.0001086,2]
[398541406,1765815032465,-500.0,0.00010959,2]
[398541408,1765815032475,-500.0,0.00010959,2]
[398541410,1765815032484,-500.0,0.00010959,2]
[398541412,1765815032494,-500.0,0.00010959,2]
[398541414,1765815032504,-500.0,0.00010959,2]
[398541416,1765815032513,-500.0,0.00010959,2]
[398541418,1765815032523,-500.0,0.00010959,2]
[398541420,1765815032533,-500.0,0.00010959,2]
[398541422,1765815032542,-500.0,0.00010959,2]
[398541424,1765815032552,-500.0,0.00010959,2]
[398541426,1765815032561,-500.0,0.00010959,2]
[398541429,1765815032570,-500.0,0.00010959,2]
[398541431,1765815032582,-500.0,0.00010959,2]
[398541433,1765815032593,-500.0,0.00010959,2]
[398541434,1765815032603,-500.0,0.00010959,2]
[398541437,1765815032612,-500.0,0.00010959,2]
[398541439,1765815032622,-272.60688706,0.00010959,2]
[398541440,1765815032632,-500.0,0.00010959,2]
[398541443,1765815032642,-500.0,0.00010959,2]
[398541445,1765815032652,-500.0,0.00010959,2]
[398541447,1765815032662,-500.0,0.00010959,2]
[398541449,1765815032672,-500.0,0.00010959,2]
[398541451,1765815032682,-500.0,0.00010959,2]
[398541453,1765815032691,-500.0,0.00010959,2]
[398541455,1765815032701,-500.0,0.00010959,2]
[398541457,1765815032711,-500.0,0.00010959,2]
[398541459,1765815032720,-500.0,0.00010959,2]
[398541461,1765815032730,-500.0,0.00010959,2]
[398541463,1765815032739,-500.0,0.00010959,2]
[398541465,1765815032749,-500.0,0.00010959,2]
[398541467,1765815032759,-500.0,0.00010959,2]
[398541469,1765815032769,-500.0,0.00010959,2]
[398541471,1765815032778,-500.0,0.00010959,2]
[398541473,1765815032788,-500.0,0.00010959,2]
[398541475,1765815032798,-500.0,0.00010959,2]
[398541477,1765815032808,-500.0,0.00010959,2]
[398541479,1765815032818,-500.0,0.00010959,2]
[398541481,1765815032830,-500.0,0.00010959,2]
[398541483,1765815032840,-500.0,0.00010959,2]
[398541485,1765815032850,-500.0,0.00010959,2]
[398541487,1765815032862,-500.0,0.00010959,2]
[398541489,1765815032872,-500.0,0.00010959,2]
[398541491,1765815032881,-550.0,0.00010959,2]
[398541493,1765815032891,-500.0,0.00010959,2]
[398541495,1765815032900,-500.0,0.00010959,2]
[398541497,1765815032910,-500.0,0.00010959,2]
[398541499,1765815032919,-300.0,0.00010978,2]
[398541501,1765815032928,-300.0,0.00010978,2]
[398541503,1765815032938,-300.0,0.00010978,2]
[398541505,1765815032948,-300.0,0.00010978,2]
[398541507,1765815032957,-300.0,0.00010978,2]
[398541509,1765815032967,-300.0,0.00010978,2]
[398541511,1765815032977,-300.0,0.00010978,2]
[398541513,1765815032986,-300.0,0.00010978,2]
[398541515,1765815032996,-300.0,0.00010978,2]
[398541517,1765815033006,-300.0,0.00010978,2]
[398541520,1765815033017,-300.0,0.00010978,2]
[398541522,1765815033026,-300.0,0.00010978,2]
[398541524,1765815033036,-300.0,0.00010978,2]
[398541526,1765815033045,-300.0,0.00010978,2]
[398541528,1765815033055,-300.0,0.00010978,2]
[398541530,1765815033065,-600.0,0.00010978,2]
[398541532,1765815033076,-286.5,0.00011031,2]
[398541534,1765815033085,-384.91927761,0.00011061,2]
[398541536,1765815033095,-251.07475958,0.00011061,2]
[398541538,1765815033104,-259.21682074,0.00011061,2]
[398541540,1765815033114,-466.59027733,0.00011061,2]
[398541542,1765815033124,-286.94258238,0.00011061,2]
[398541544,1765815033133,-448.34778497,0.00011061,2]
[398541546,1765815033143,-644.97518955,0.00011061,2]
[398541548,1765815033153,-213.81235711,0.00011061,2]
[398541550,1765815033163,-384.8622428,0.00011061,2]
[398541552,1765815033173,-829.49382636,0.00011061,2]
[398541554,1765815033183,-1296.08410368,0.00011061,2]
[398541556,1765815033192,-1866.3611093,0.00011061,2]
[398541558,1765815033202,-2537.78451837,0.00011061,2]
[398541560,1765815033211,-684.19954276,0.00011061,2]
[398541562,1765815033221,-1069.06178556,0.00011061,2]
[398541564,1765815033231,-1537.90952223,0.00011061,2]
[398541566,1765815033241,-600.71777239,0.00011089,2]
[398541569,1765815033251,-2472.46625095,0.00011118,2]
[398541571,1765815033261,-3517.05557252,0.00011148,2]
[398541573,1765815033271,-383.84,0.00011205,2]
[398541575,1765815033280,-574.12855637,0.00011205,2]
[398541577,1765815033289,-2773.56790519,0.00011205,2]
[398541579,1765815033298,-317.0,0.00011251,2]
[398541581,1765815033308,-286.5,0.00011305,2]
[398541583,1765815033317,-200.0,0.00011313,2]
[398541585,1765815033329,-2472.46625095,0.00011348,2]
[398541587,1765815033338,-349.205,0.00011348,2]
[398541588,1765815033347,-597.5655512,0.00011507,2]
[398541590,1765815033356,-301.8232098,0.00011507,2]
[398541592,1765815033366,-2157.0,0.00011575,2]
[398541594,1765815033375,-1361.0,0.00011575,2]
[398541596,1765815033384,-632.0,0.00011575,2]
[398541597,1765815033394,-286.5,0.00011579,2]
[398541598,1765815033403,-236.63,0.000116,2]
[398541599,1765815033412,-1424.3665093,0.000116,2]
[398541600,1765815033423,-204.07456477,0.00011607,2]
[398541602,1765815033432,-415.0,0.00011614,2]
[398541603,1765815033442,-167.52780415,0.0001163,2]
[398541605,1765815033451,-500.0,0.00011674,2]
[398541607,1765815033460,-500.0,0.00011674,2]
[398541609,1765815033471,-500.0,0.00011674,2]
[398541610,1765815033481,-500.0,0.00011674,2]
[398541611,1765815033490,-151.90833,0.00011674,2]
[398541612,1765815033500,-152.35598378,0.00011674,2]
[398541613,1765815033509,-500.0,0.00011674,2]
[398541614,1765815033518,-500.0,0.00011674,2]
[398541615,1765815033528,-150.0,0.00011674,2]
[398541616,1765815033537,-150.0,0.00011674,2]
[398541617,1765815033547,-1165.2073323,0.00011686,2]
[398541618,1765815033556,-236.63,0.000117,2]
[398541619,1765815033564,-236.63,0.000117,2]
[398541620,1765815033576,-420.0,0.00011721,2]
[398541621,1765815033585,-1680.0,0.00011729,2]
[398541622,1765815033594,-595.37131296,0.00011753,2]
[398541623,1765815033603,-2876.18991768,0.00011753,2]
[398541624,1765815033612,-317.8191273,0.00011787,2]
[398541625,1765815033621,-303.7333218,0.00011791,2]
[398541626,1765815033630,-236.63,0.000118,2]
[398541627,1765815033639,-500.0,0.00011811,2]
[398541628,1765815033648,-500.0,0.00011811,2]
[398541629,1765815033657,-540.33458456,0.00011811,2]
[398541630,1765815033666,-500.0,0.00011811,2]
[398541631,1765815033675,-500.78157615,0.00011811,2]
[398541632,1765815033684,-500.0,0.00011811,2]
[398541633,1765815033693,-150.0,0.00011811,2]
[398541634,1765815033703,-200.0,0.00011811,2]
[398541635,1765815033713,-273.86812047,0.00011817,2]
[398541636,1765815033722,-286.53794385,0.00011853,2]
[398541637,1765815033731,-236.63,0.000119,2]
[398541638,1765815033739,-259.9928986,0.00011901,2]
[398541639,1765815033748,-500.0,0.00011948,2]
[398541640,1765815033758,-500.0,0.00011948,2]
[398541641,1765815033767,-500.0,0.00011948,2]
[398541642,1765815033776,-400.43208193,0.00011948,2]
[398541643,1765815033785,-150.0,0.00011948,2]
[398541644,1765815033794,-236.63,0.00012,2]
[398541645,1765815033803,-236.63,0.00012,2]
[398541646,1765815033812,-25716.28301289,0.0001207,2]
[398541647,1765815033821,-720.0,0.00012076,2]
[398541648,1765815033833,-366.96688237,0.00012081,2]
[398541649,1765815033843,-350.0,0.00012085,2]
[398541650,1765815033853,-500.0,0.00012085,2]
[398541651,1765815033864,-500.0,0.00012085,2]
[398541652,1765815033873,-150.0,0.00012085,2]
[398541653,1765815033883,-236.63,0.000121,2]
[398541654,1765815033892,-346.77667255,0.00012101,2]
[398541655,1765815033902,-946.76633968,0.00012155,2]
[398541656,1765815033910,-270.91593564,0.00012162,2]
[398541657,1765815033920,-236.63,0.000122,2]
[398541658,1765815033930,-236.63,0.000122,2]
[398541659,1765815033939,-1208.92019723,0.00012202,2]
[398541660,1765815033954,-5728.52387989,0.00012202,2]
[398541661,1765815033965,-500.0,0.00012222,2]
[398541662,1765815033975,-500.0,0.00012222,2]
[398541663,1765815033984,-202.71434993,0.00012222,2]
[398541664,1765815033993,-1409.48409789,0.00012263,2]
[398541666,1765815035788,-635.0857667,0.00012263,2]
[398541667,1765815035800,-449.07731312,0.00012263,2]
[398541677,1765815037808,-3660.90187348,0.00012263,2]
[398541679,1765815037819,-253.57723865,0.00012299,2]
[398541680,1765815037830,-151.0,0.000123,2]
[398541682,1765815037840,-617.40005154,0.00012301,2]
[398541683,1765815037850,-487.64868415,0.00012346,2]
[398541684,1765815037864,-500.0,0.00012359,2]
[398541685,1765815037874,-500.0,0.00012359,2]
[398541686,1765815037885,-1061.64496947,0.00012371,2]
[398541687,1765815037895,-2043.65174889,0.00012372,2]
[398541688,1765815037938,-1940.29941832,0.00012372,2]
[398541732,1765815040148,-2170.59788398,0.00012372,2]
[398541733,1765815040157,-65.07721242,0.00012377,2]
[398541746,1765815042967,-107.11183087,0.00012377,2]
[398541747,1765815042976,-167.22201268,0.00012377,2]
[398541748,1765815042986,-1061.64496947,0.00012445,2]
[398541749,1765815042995,-6154.54905119,0.00012482,2]
[398541750,1765815043004,-253.57723865,0.00012491,2]
[398541751,1765815043014,-115.97936802,0.00012496,2]
[398541776,1765815046024,-384.02063198,0.00012496,2]
[398541777,1765815046033,-500.0,0.00012496,2]
[398541778,1765815046042,-205.09359167,0.000125,3]
[398541780,1765815049803,154.44,0.000106,2]
[398541781,1765815052956,890000.0,0.00010564,2]
[398541782,1765815134574,187.66,0.000106,2]
[398541783,1765815160551,150.0,7.818e-05,2]
[398541784,1765815161032,150.0,8.191e-05,2]
[398541785,1765815172536,200.0,0.00010543,2]
[398541786,1765815188380,206.99810591,0.000106,2]
[398541787,1765815223012,155.71,0.000106,2]
[398541788,1765815254699,187.02,0.000106,2]
[398541790,1765815289904,150.0,7.821e-05,2]
[398541791,1765815290306,150.0,8.194e-05,2]
[398541792,1765815290824,153.0,8.566e-05,2]
[398541793,1765815291245,204.0,8.938e-05,2]
[398541794,1765815291754,255.0,9.311e-05,2]
[398541795,1765815292186,306.0,9.683e-05,2]
[398541796,1765815292606,356.99,0.00010056,2]
[398541797,1765815293130,407.99,0.00010428,2]
[398541801,1765815323620,151.11,0.000106,2]
[398541803,1765815367906,150.0,7.819e-05,2]
[398541804,1765815368842,150.0,8.191e-05,2]
[398541805,1765815369070,150.0,8.563e-05,2]
[398541806,1765815369550,180.08,8.936e-05,2]
[398541807,1765815369959,225.11,9.308e-05,2]
[398541808,1765815370564,270.13,9.68e-05,2]
[398541809,1765815370941,315.15,0.00010053,2]
[398541810,1765815371330,360.17,0.00010425,2]
[398541811,1765815373563,186.3,0.000106,2]
[398541815,1765815442922,150.0,7.825e-05,2]
[398541816,1765815443426,150.0,8.197e-05,2]
[398541817,1765815443692,152.42,0.000106,2]
[398541818,1765815443965,150.0,8.57e-05,2]
[398541819,1765815444355,150.0,8.942e-05,2]
[398541820,1765815445149,167.79,9.315e-05,2]
[398541821,1765815445334,201.35,9.688e-05,2]
[398541822,1765815445825,234.91,0.0001006,2]
[398541823,1765815446291,268.47,0.00010433,2]
[398541824,1765815446529,-300.0,0.0001066,2]
[398541825,1765815446562,-300.0,0.0001066,2]
[398541826,1765815446597,-1200.0,0.0001066,2]
[398541827,1765815446630,-239.19256252,0.00010661,2]
[398541828,1765815446663,-1200.0,0.00010661,2]
[398541829,1765815446696,-300.0,0.00010661,2]
[398541830,1765815446732,-61.54783326,0.00010662,2]
[398541831,1765815446986,-2798.52920844,0.00010662,2]
[398541832,1765815459005,-152.42,0.000107,2]
[398541833,1765815459045,-302.03,0.00010805,2]
[398541834,1765815459083,-300.0,0.00010875,2]
[398541835,1765815459121,-300.0,0.00010875,2]
[398541836,1765815459161,-300.0,0.00010875,2]
[398541837,1765815459198,-300.0,0.00010875,2]
[398541838,1765815459235,-300.0,0.00010875,2]
[398541839,1765815459272,-300.0,0.00010875,2]
[398541840,1765815459313,-300.0,0.00010875,2]
[398541841,1765815459350,-300.0,0.00010875,2]
[398541842,1765815459386,-300.0,0.00010875,2]
[398541843,1765815459424,-300.0,0.00010875,2]
[398541844,1765815459460,-300.0,0.00010875,2]
[398541845,1765815459498,-300.0,0.00010875,2]
[398541846,1765815459533,-300.0,0.00010875,2]
[398541847,1765815459568,-300.0,0.00010875,2]
[398541848,1765815459602,-300.0,0.00010875,2]
[398541849,1765815460038,-91.11,0.00010875,2]
[398541850,1765815465517,-508.89,0.00010875,2]
[398541851,1765815497213,185.62,0.000106,2]
[398541852,1765815497445,185.62,0.000107,2]
[398541853,1765815497984,185.62,0.000107,2]
[398541854,1765815498394,185.62,0.000108,2]
[398541855,1765815498757,185.62,0.000109,2]
[398541856,1765815503944,-185.62,0.00011,2]
[398541857,1765815504292,-185.62,0.00011,2]
[398541858,1765815507271,500.0,0.00010874,2]
[398541859,1765815507323,500.0,0.00010874,2]
[398541860,1765815507358,500.0,0.00010874,2]
[398541861,1765815507413,500.0,0.00010874,2]
[398541862,1765815507530,500.0,0.00010874,2]
[398541863,1765815507623,500.0,0.00010874,2]
[398541864,1765815507662,500.0,0.00010874,2]
[398541865,1765815507698,500.0,0.00010874,2]
[398541866,1765815507743,500.0,0.00010874,2]
[398541867,1765815507779,500.0,0.00010874,2]
[398541868,1765815507832,500.0,0.00010874,2]
[398541869,1765815507886,500.0,0.00010874,2]
[398541870,1765815507931,500.0,0.00010874,2]
[398541871,1765815507980,500.0,0.00010874,2]
[398541872,1765815508017,500.0,0.00010874,2]
[398541873,1765815508064,500.0,0.00010874,2]
[398541874,1765815508103,500.0,0.00010874,2]
[398541875,1765815508140,500.0,0.00010874,2]
[398541876,1765815508483,257.53,0.00010874,2]
[398541877,1765815508510,242.47,0.00010874,2]
[398541878,1765815508553,500.0,0.00010874,2]
[398541879,1765815508587,500.0,0.00010874,2]
[398541880,1765815508621,500.0,0.00010874,2]
[398541881,1765815508677,500.0,0.00010874,2]
[398541882,1765815508712,500.0,0.00010874,2]
[398541883,1765815508756,500.0,0.00010874,2]
[398541884,1765815508810,500.0,0.00010874,2]
[398541885,1765815508862,500.0,0.00010874,2]
[398541886,1765815508914,500.0,0.00010874,2]
[398541887,1765815508978,500.0,0.00010874,2]
[398541888,1765815509038,500.0,0.00010874,2]
[398541889,1765815509081,500.0,0.00010874,2]
[398541890,1765815509136,500.0,0.00010874,2]
[398541891,1765815509190,500.0,0.00010874,2]
[398541892,1765815509226,500.0,0.00010874,2]
[398541893,1765815509312,500.0,0.00010874,2]
[398541894,1765815509368,365.50000267,0.00010874,2]
[398541895,1765815509434,500.0,0.00010874,2]
[398541896,1765815515906,150.0,7.014e-05,2]
[398541897,1765815516373,150.0,7.348e-05,2]
[398541898,1765815516861,150.0,7.682e-05,2]
[398541899,1765815524717,150.0,8.016e-05,2]
[398541900,1765815525514,150.0,8.35e-05,2]
[398541901,1765815531579,142.03999733,0.00010874,2]
[398541902,1765815531607,357.96000267,0.00010874,2]
[398541903,1765815531645,500.0,0.00010874,2]
[398541904,1765815531697,500.0,0.00010874,2]
[398541905,1765815531731,500.0,0.00010874,2]
[398541906,1765815531791,500.0,0.00010874,2]
[398541907,1765815531835,500.0,0.00010874,2]
[398541908,1765815531877,500.0,0.00010874,2]
[398541909,1765815531919,507.91158844,0.00010874,2]
[398541910,1765815531974,500.0,0.00010874,2]
[398541911,1765815532016,500.0,0.00010874,2]
[398541912,1765815532087,500.0,0.00010874,2]
[398541913,1765815537337,500.0,0.00010874,2]
[398541914,1765815537419,500.0,0.00010874,2]
[398541915,1765815537473,650.0,0.00010874,2]
[398541916,1765815537509,500.0,0.00010874,2]
[398541917,1765815537555,500.0,0.00010874,2]
[398541918,1765815537604,500.0,0.00010874,2]
[398541919,1765815573809,152.86,0.000106,2]
[398541921,1765815580828,-152.86,0.000107,2]
[398541922,1765815580863,-152.86,0.000108,2]
[398541923,1765815580899,-564.88245672,0.00010959,2]
[398541924,1765815580932,-564.88245672,0.00010959,2]
[398541925,1765815580968,-564.88245672,0.00010959,2]
[398541926,1765815581005,-564.88245672,0.00010959,2]
[398541927,1765815581040,-564.88245672,0.00010959,2]
[398541928,1765815581074,-564.88245672,0.00010959,2]
[398541929,1765815581111,-564.88245672,0.00010959,2]
[398541930,1765815581143,-564.88245672,0.00010959,2]
[398541931,1765815581440,-564.88245672,0.00010959,2]
[398541932,1765815581475,-564.88245672,0.00010959,2]
[398541933,1765815581509,-564.88245672,0.00010959,2]
[398541934,1765815581544,-564.88245672,0.00010959,2]
[398541935,1765815581577,-564.88245672,0.00010959,2]
[398541936,1765815581610,-564.88245672,0.00010959,2]
[398541937,1765815581643,-564.88245672,0.00010959,2]
[398541938,1765815581675,-564.88245672,0.00010959,2]
[398541939,1765815581708,-397.00823576,0.00010959,2]
[398541940,1765815581867,-167.87422096,0.00010959,2]
[398541941,1765815582113,-564.88245672,0.00010959,2]
[398541942,1765815582146,-564.88245672,0.00010959,2]
[398541943,1765815582181,-564.88245672,0.00010959,2]
[398541944,1765815582217,-564.88245672,0.00010959,2]
[398541945,1765815582253,-564.88245672,0.00010959,2]
[398541946,1765815582290,-564.88245672,0.00010959,2]
[398541947,1765815582324,-564.88245672,0.00010959,2]
[398541948,1765815582359,-564.88245672,0.00010959,2]
[398541949,1765815582393,-61.25979384,0.00010959,2]
[398541950,1765815588122,-503.62266288,0.00010959,2]
[398541951,1765815588157,-564.88245672,0.00010959,2]
[398541952,1765815588193,-564.88245672,0.00010959,2]
[398541953,1765815588229,-564.88245672,0.00010959,2]
[398541954,1765815588262,-564.88245672,0.00010959,2]
[398541955,1765815588297,-564.88245672,0.00010959,2]
[398541956,1765815588331,-564.88245672,0.00010959,2]
[398541957,1765815588364,-564.88245672,0.00010959,2]
[398541958,1765815588397,-519.52782344,0.00010959,2]
[398541959,1765815596188,-45.35463328,0.00010959,2]
[398541960,1765815596224,-564.88245672,0.00010959,2]
[398541961,1765815596260,-564.88245672,0.00010959,2]
[398541962,1765815596294,-564.88245672,0.00010959,2]
[398541963,1765815596328,-564.88245672,0.00010959,2]
[398541964,1765815596361,-564.88245672,0.00010959,2]
[398541965,1765815596395,-564.88245672,0.00010959,2]
[398541966,1765815596657,-564.88245672,0.00010959,2]
[398541967,1765815596692,-564.88245672,0.00010959,2]
[398541968,1765815596727,-306.2989692,0.00010959,2]
[398541969,1765815615055,151.53,0.000106,2]
[398541970,1765815620995,-151.53,0.000107,2]
[398541971,1765815621031,-151.53,0.000107,2]
[398541972,1765815621070,-151.53,0.000108,2]
[398541973,1765815621106,-151.53,0.000109,2]
[398541974,1765815621138,-1050.1750721,0.00010957,2]
[398541975,1765815621170,-574.0,0.00010957,2]
[398541976,1765815621207,-1200.0,0.00010957,2]
[398541977,1765815621239,-300.0,0.00010958,2]
[398541978,1765815621272,-300.0,0.00010958,2]
[398541979,1765815621305,-300.0,0.00010958,2]
[398541980,1765815621338,-300.0,0.00010958,2]
[398541981,1765815621371,-239.4198558,0.00010959,2]
[398541982,1765815622244,-260.5801442,0.00010959,2]
[398541983,1765815622282,-151.53,0.00011,2]
[398541984,1765815622323,-151.53,0.00011,2]
[398541987,1765815677775,152.72,0.000106,2]
[398541989,1765815707182,-152.72,0.000107,2]
[398541990,1765815733335,150.29,0.000106,2]
[398541991,1765815733663,150.29,0.000107,2]
[398541992,1765815746676,-150.29,0.000108,2]
[398541993,1765815748350,151.0,0.00014111,29]
[398541994,1765815749202,151.0,0.00014111,29]
[398541995,1765815750978,151.0,0.00014111,29]
[398541996,1765815751730,151.0,0.00014111,29]
[398541997,1765815752811,151.0,0.00014111,29]
[398541998,1765815753353,151.0,0.00014111,29]
[398541999,1765815754265,151.0,0.00014111,29]
[398542000,1765815755929,151.0,0.00014111,29]
[398542001,1765815756544,151.0,0.00014111,29]